bitfinex/quotes_SOLUSD_20251117
["timestamp","ask_amount","ask_price","bid_price","bid_amount"]
[1763396146437,50.0,134.95,134.84,0.69]
[1763396146612,18.12096,134.91,134.84,0.69]
[1763396146803,11.91229915,134.86,134.83,1.93593088]
[1763396147121,4.52,134.85,134.83,1.93593088]
[1763396147425,18.12096,134.91,134.84,0.69]
[1763396147623,9.39911704,134.9,134.83,1.93593088]
[1763396147819,50.0,134.93,134.84,0.69]
[1763396148032,50.0,134.93,134.83,1.93593088]
[1763396148033,11.91229915,134.86,134.83,1.93593088]
[1763396148196,11.91229915,134.84,134.83,1.93593088]
[1763396148525,61.91229915,134.84,134.83,1.93593088]
[1763396148715,68.12096,134.74,134.67,37.31555626]
[1763396148934,68.12096,134.74,134.66,244.22294566]
[1763396148935,11.91229915,134.68,134.66,243.53294566]
[1763396149247,80.3645983,134.67,134.66,166.45738393]
[1763396149530,80.3645983,134.67,134.54,0.43166136]
[1763396149531,50.0,134.57,134.54,0.43166136]
[1763396149733,50.0,134.61,134.54,0.43166136]
[1763396149903,11.91229915,134.55,134.54,0.43166136]
[1763396150107,80.3645983,134.55,134.54,0.43166136]
[1763396150338,80.3645983,134.55,134.29,0.74465708]
[1763396150339,50.0,134.39,134.26,0.69]
[1763396150540,100.0,134.38,134.3,11.91229915]
[1763396150706,11.91229915,134.31,134.25,14.68478897]
[1763396150907,50.0,134.33,134.25,2.77248982]
[1763396151135,54.58,134.32,134.25,2.77248982]
[1763396151312,14.81446274,134.26,134.25,2.77248982]
[1763396151510,50.0,134.14,134.05,0.69]
[1763396151812,2.0,134.21,134.05,0.69]
[1763396151813,4.62,134.21,134.05,0.69]
[1763396152125,50.0,134.17,134.05,0.69]
[1763396152301,50.0,134.17,133.97,22.45172878]
[1763396152302,50.0,134.02,133.97,20.71021539]
[1763396152504,50.0,134.02,133.33,2.0]
[1763396152505,50.0,133.97,133.64,21.92976341]
[1763396152710,7.88609424,134.01,133.76,58.6293984]
[1763396152908,18.12096,133.94,133.76,20.71021539]
[1763396153130,5.50762288,133.93,133.76,20.71021539]
[1763396153433,50.0,133.89,133.69,20.71021539]
[1763396153633,50.70762288,133.93,133.88,12.81446274]
[1763396153847,0.70762288,133.93,133.7,64.02073194]
[1763396154141,50.0,133.82,133.52,37.01808958]
[1763396154457,4.88,133.81,133.69,0.69]
[1763396154812,50.0,133.96,133.8,12.81446274]
[1763396155005,104.9,134.06,133.92,12.81446274]
[1763396155215,4.9,134.04,133.92,0.69]
[1763396155454,100.0,134.13,134.03,12.81446274]
[1763396155604,17.86,134.23,133.96,12.81446274]
[1763396155605,50.0,134.2,134.05,18.12096]
[1763396155946,4.92,134.21,134.1,18.12096]
[1763396156104,4.92,134.21,134.01,0.69]
[1763396156105,50.0,134.14,134.01,0.69]
[1763396156308,50.0,134.08,133.91,0.69]
[1763396156536,4.94,134.07,133.95,18.12096]
[1763396156773,4.94,134.07,133.96,12.81446274]
[1763396156961,4.94,134.17,134.06,12.81446274]
[1763396157149,4.94,134.17,134.12,12.81446274]
[1763396157355,4.94,134.17,133.97,0.69]
[1763396157356,50.0,134.13,133.97,0.69]
[1763396157592,4.94,134.12,134.06,12.81446274]
[1763396157868,4.94,134.12,133.96,30.93542274]
[1763396157869,4.94,134.11,133.98,0.69]
[1763396158244,50.0,134.1,134.01,12.81446274]
[1763396158447,12.81446274,134.02,133.96,12.81446274]
[1763396158746,4.94,134.01,134.0,12.81446274]
[1763396159183,4.94,134.05,134.0,12.81446274]
[1763396159347,18.12096,134.08,133.96,12.81446274]
[1763396159541,18.12096,134.08,133.95,18.12096]
[1763396159542,4.94,134.07,133.9,0.69]
[1763396159742,50.0,134.02,133.95,12.81446274]
[1763396159964,50.0,133.95,133.74,37.07996014]
[1763396160172,50.0,133.92,133.83,12.81446274]
[1763396160344,100.0,133.89,133.74,37.07996014]
[1763396160554,50.0,133.81,133.68,4.45397727]
[1763396160737,2.0,133.89,133.8,12.81446274]
[1763396160738,50.0,133.89,133.8,12.81446274]
[1763396160938,4.45397727,133.99,133.8,4.96]
[1763396161159,50.0,134.09,133.98,12.81446274]
[1763396161371,50.0,134.09,133.96,12.81446274]
[1763396161372,4.98,134.15,134.07,18.12096]
[1763396161543,0.2,134.11,134.06,18.12096]
[1763396161746,2.0,134.3,134.06,18.12096]
[1763396161747,52.0,134.29,134.07,0.69]
[1763396161961,50.0,134.27,134.07,0.69]
[1763396162151,50.0,134.33,134.13,18.12096]
[1763396162471,72.25,134.27,134.07,0.69]
[1763396162773,50.0,134.24,133.84,50.0]
[1763396162984,18.12096,134.1,133.96,13.50446274]
[1763396163282,30.93542274,134.13,134.06,12.81446274]
[1763396163446,100.0,134.14,133.96,12.81446274]
[1763396163447,5.02,134.14,133.97,0.69]
[1763396163647,5.02,134.13,134.12,12.81446274]
[1763396163961,18.12096,134.1,133.98,12.81446274]
[1763396164164,50.0,134.1,134.03,12.81446274]
[1763396164367,18.12096,134.07,134.04,12.81446274]
[1763396164676,0.3877,134.12,134.06,12.81446274]
[1763396164865,0.3877,134.12,134.11,12.81446274]
[1763396165066,0.3877,134.12,134.0,0.69]
[1763396165067,5.4077,134.12,134.0,0.69]
[1763396165269,5.4077,134.12,134.0,18.81096]
[1763396165458,5.4077,134.12,134.06,12.81446274]
[1763396165668,5.4077,134.12,134.09,12.81446274]
[1763396165863,5.4077,134.12,134.11,12.81446274]
[1763396166589,5.4077,134.12,134.0,9.78882769]
[1763396166955,5.4077,134.12,133.91,12.81446274]
[1763396167155,5.4077,134.12,133.91,17.83446274]
[1763396167361,18.22216274,134.12,133.91,17.83446274]
[1763396167560,5.4077,134.12,133.98,27.90978769]
[1763396167773,5.4077,134.12,134.1,12.81446274]
[1763396167973,0.3877,134.12,133.99,18.12096]
[1763396168163,0.3877,134.12,133.92,312.4]
[1763396168164,0.3877,134.12,134.04,9.78882769]
[1763396168559,0.3877,134.12,133.92,477.3]
[1763396168560,18.12096,134.05,133.89,0.72]
[1763396168760,0.3877,134.12,134.04,11.71765227]
[1763396169058,0.3877,134.12,133.89,13.20865535]
[1763396169059,0.3877,134.12,134.11,11.71765227]
[1763396169261,0.3877,134.12,134.03,18.12096]
[1763396169575,0.3877,134.12,134.1,11.71765227]
[1763396169774,0.3877,134.12,134.03,0.72]
[1763396169988,0.3877,134.12,133.98,0.72]
[1763396170162,50.0,134.15,134.07,11.71765227]
[1763396170477,100.71,134.24,134.14,11.71765227]
[1763396170684,50.71,134.3,134.22,11.71765227]
[1763396170865,5.02,134.29,134.25,11.71765227]
[1763396171070,5.02,134.29,134.27,11.71765227]
[1763396171394,5.02,134.29,134.16,0.72]
[1763396171550,11.71765227,134.27,134.17,9.78882769]
[1763396171753,5.02,134.29,134.25,11.71765227]
[1763396171953,5.02,134.29,134.2,9.78882769]
[1763396171954,5.02,134.29,134.27,11.71765227]
[1763396172165,17.92,134.34,134.13,7.45519494]
[1763396172377,5.02,134.33,134.3,11.71765227]
[1763396172598,5.02,134.33,134.31,11.71765227]
[1763396172805,5.02,134.33,134.32,11.71765227]
[1763396172953,0.71,134.43,134.32,11.71765227]
[1763396173279,11.71765227,134.37,134.31,11.71765227]
[1763396173488,5.02,134.36,134.25,9.78882769]
[1763396173798,5.02,134.36,134.32,11.71765227]
[1763396173951,0.71,134.42,134.34,11.71765227]
[1763396174153,5.02,134.41,134.33,11.71765227]
[1763396174379,5.02,134.41,134.35,11.71765227]
[1763396174588,5.02,134.4,134.3,9.78882769]
[1763396174768,16.73765227,134.4,134.29,9.78882769]
[1763396174960,16.73765227,134.4,134.34,11.71765227]
[1763396175199,11.71765227,134.38,134.29,9.78882769]
[1763396175471,18.12096,134.38,134.33,11.71765227]
[1763396175657,29.83861227,134.34,134.17,0.72]
[1763396175865,11.71765227,134.3,134.17,0.72]
[1763396176066,18.12096,134.35,134.17,0.72]
[1763396176295,29.83861227,134.31,134.25,11.71765227]
[1763396176491,29.83861227,134.31,134.17,0.72]
[1763396176492,18.12096,134.31,134.26,11.71765227]
[1763396176792,5.02,134.3,134.21,18.12096]
[1763396176956,5.02,134.29,134.27,11.71765227]
[1763396177386,50.7,134.41,134.25,9.78882769]
[1763396177583,11.71765227,134.38,134.28,11.71765227]
[1763396177789,5.02,134.4,134.33,11.71765227]
[1763396177957,5.02,134.4,134.25,21.50647996]
[1763396177958,50.0,134.38,134.25,11.71765227]
[1763396178158,23.14096,134.37,134.25,11.71765227]
[1763396178402,23.14096,134.37,134.32,11.71765227]
[1763396178403,18.12096,134.33,134.32,11.71765227]
[1763396178780,18.82096,134.33,134.32,11.71765227]
[1763396179285,0.7,134.41,134.32,11.71765227]
[1763396179587,0.7,134.41,134.25,11.71765227]
[1763396179588,50.0,134.38,134.25,11.71765227]
[1763396179880,5.04,134.37,134.36,11.71765227]
[1763396180260,5.04,134.37,134.3,10.47882769]
[1763396180583,5.04,134.37,134.36,11.71765227]
[1763396180783,0.7,134.43,134.36,11.71765227]
[1763396181095,0.7,134.47,134.42,11.71765227]
[1763396181275,5.02,134.46,134.42,11.71765227]
[1763396181473,50.0,134.43,134.28,0.69]
[1763396181794,18.12096,134.41,134.38,11.71765227]
[1763396181960,0.7,134.45,134.4,11.71765227]
[1763396182294,5.72,134.44,134.3,0.69]
[1763396182457,5.72,134.44,134.4,11.71765227]
[1763396182659,5.02,134.44,134.42,11.71765227]
[1763396182887,5.02,134.44,134.31,9.78882769]
[1763396182888,18.12096,134.26,134.12,0.69]
[1763396183090,46.57626454,134.26,134.12,0.69]
[1763396183288,23.14096,134.26,134.12,0.69]
[1763396183479,18.12096,134.23,134.12,0.69]
[1763396183802,11.71765227,134.18,134.13,9.78882769]
[1763396183974,11.71765227,134.2,134.12,0.69]
[1763396184180,11.71765227,134.2,134.13,11.71765227]
[1763396184494,11.71765227,134.27,134.2,9.78882769]
[1763396184693,5.04,134.26,134.21,0.69]
[1763396184989,11.71765227,134.27,134.22,9.78882769]
[1763396185203,11.71765227,134.27,134.22,10.47882769]
[1763396185400,11.71765227,134.23,134.04,77.99632884]
[1763396185559,100.0,134.32,133.96,37.32457449]
[1763396185560,23.16096,134.22,134.11,11.71765227]
[1763396185766,11.71765227,134.2,134.11,11.71765227]
[1763396185965,11.71765227,134.2,134.01,33.55992914]
[1763396185966,11.71765227,134.18,134.12,0.69]
[1763396186161,11.71765227,134.18,133.9,50.0]
[1763396186162,11.71765227,134.13,134.02,0.69]
[1763396186390,11.71765227,134.08,134.02,0.69]
[1763396186600,11.71765227,134.08,133.9,22.38904525]
[1763396186601,18.12096,134.04,133.98,0.69]
[1763396186808,18.12096,134.04,133.94,37.44807936]
[1763396186809,72.25,134.14,133.94,0.1]
[1763396187015,11.71765227,134.05,133.99,0.69]
[1763396187197,16.77765227,134.05,133.99,0.69]
[1763396187396,16.77765227,134.05,133.94,0.1]
[1763396187397,11.71765227,134.01,133.94,0.1]
[1763396187588,11.71765227,134.01,133.94,0.79]
[1763396187589,5.06,134.0,133.94,0.79]
[1763396187783,11.71765227,133.97,133.94,0.1]
[1763396188303,18.12096,133.97,133.94,0.1]
[1763396188506,5.04,134.09,133.96,11.71765227]
[1763396188698,5.06,134.11,134.04,9.78882769]
[1763396188897,5.06,134.11,134.08,11.71765227]
[1763396189100,23.18096,134.11,134.1,11.71765227]
[1763396189320,23.18096,134.11,134.08,11.71765227]
[1763396189484,23.18096,134.11,134.1,11.71765227]
[1763396190180,18.12096,134.11,134.1,11.71765227]
[1763396190380,23.18096,134.11,134.04,0.69]
[1763396190709,23.18096,134.11,134.1,11.71765227]
[1763396190884,0.61,134.2,134.1,11.71765227]
[1763396191084,5.06,134.19,134.11,9.78882769]
[1763396191298,5.06,134.19,134.11,0.69]
[1763396191494,5.06,134.19,134.07,0.69]
[1763396191683,5.06,134.19,134.16,11.71765227]
[1763396192098,5.04,134.18,134.09,0.69]
[1763396192300,0.61,134.22,134.17,11.71765227]
[1763396192609,0.61,134.22,134.1,9.78882769]
[1763396192610,5.04,134.21,134.1,9.78882769]
[1763396192784,50.0,134.29,134.19,11.71765227]
[1763396193111,11.71765227,134.26,134.21,11.71765227]
[1763396193289,12.32765227,134.25,134.19,11.71765227]
[1763396193486,12.32765227,134.25,134.2,11.71765227]
[1763396193797,11.71765227,134.26,134.21,11.71765227]
[1763396194017,11.71765227,134.27,134.21,11.71765227]
[1763396194221,54.51193545,134.29,134.21,11.71765227]
[1763396194404,36.04014603,134.34,134.28,11.71765227]
[1763396194599,9.57220014,134.33,134.28,11.71765227]
[1763396194817,9.57220014,134.33,134.22,0.69]
[1763396194818,9.57220014,134.33,134.29,11.71765227]
[1763396195130,5.04,134.32,134.31,11.71765227]
[1763396195340,5.79249376,134.41,134.31,11.71765227]
[1763396195629,5.04,134.4,134.32,0.69]
[1763396195822,5.04,134.4,134.37,11.71765227]
[1763396196007,23.16096,134.4,134.37,11.71765227]
[1763396196344,11.71765227,134.44,134.39,11.71765227]
[1763396196512,11.71765227,134.44,134.34,0.69]
[1763396196513,5.04,134.43,134.34,0.69]
[1763396196716,4.54077824,134.44,134.39,11.71765227]
[1763396197036,5.04,134.43,134.38,11.71765227]
[1763396197197,5.04,134.43,134.39,11.71765227]
[1763396197396,5.04,134.43,134.33,9.78882769]
[1763396197397,5.04,134.43,134.34,9.78882769]
[1763396197604,18.12096,134.42,134.39,11.71765227]
[1763396197824,0.61,134.46,134.41,11.71765227]
[1763396198023,16.75765227,134.45,134.4,11.71765227]
[1763396198230,12.32765227,134.46,134.41,11.71765227]
[1763396198531,4.53947958,134.47,134.45,11.71765227]
[1763396198737,5.04,134.46,134.45,11.71765227]
[1763396199150,4.53854723,134.52,134.45,11.71765227]
[1763396199438,5.04,134.51,134.49,11.71765227]
[1763396199617,4.53854723,134.54,134.5,11.71765227]
[1763396199819,5.04,134.53,134.48,11.71765227]
[1763396200002,11.71765227,134.5,134.4,9.78882769]
[1763396200212,11.71765227,134.5,134.45,11.71765227]
[1763396200213,23.16096,134.49,134.45,11.71765227]
[1763396200440,5.04,134.48,134.47,11.71765227]
[1763396200735,0.25865549,134.49,134.47,11.71765227]
[1763396201050,0.25865549,134.49,134.45,0.67]
[1763396201346,0.25865549,134.49,134.48,11.71765227]
[1763396201805,0.25865549,134.49,134.48,12.38765227]
[1763396202413,0.2,134.57,134.49,9.78882769]
[1763396202611,0.2,134.57,134.56,11.71765227]
[1763396203005,0.2,134.57,134.54,11.71765227]
[1763396203206,0.2,134.57,134.55,11.71765227]
[1763396203609,0.2,134.57,134.56,11.71765227]
[1763396203830,5.22,134.57,134.55,11.71765227]
[1763396204038,5.22,134.57,134.54,11.71765227]
[1763396204604,11.91765227,134.57,134.48,9.78882769]
[1763396204815,5.02,134.56,134.48,9.78882769]
[1763396205013,5.02,134.55,134.53,11.71765227]
[1763396205428,5.02,134.55,134.49,0.67]
[1763396205605,5.02,134.55,134.52,11.71765227]
[1763396205810,0.2,134.57,134.54,11.71765227]
[1763396206339,5.02,134.56,134.51,0.67]
[1763396206637,5.02,134.56,134.47,0.67]
[1763396206638,17.43765227,134.56,134.47,0.67]
[1763396206818,5.02,134.56,134.5,11.71765227]
[1763396207015,5.02,134.56,134.47,0.67]
[1763396207217,5.02,134.56,134.49,11.71765227]
[1763396207410,0.2,134.57,134.48,9.78882769]
[1763396207612,5.02,134.56,134.53,11.71765227]
[1763396207911,5.02,134.56,134.43,18.12096]
[1763396207912,0.2,134.57,134.55,11.71765227]
[1763396208112,5.02,134.56,134.44,0.67]
[1763396208434,0.2,134.57,134.53,11.71765227]
[1763396208606,5.0,134.55,134.53,11.71765227]
[1763396208809,5.0,134.55,134.45,0.67]
[1763396208810,11.71765227,134.56,134.5,11.71765227]
[1763396209033,5.0,134.55,134.51,11.71765227]
[1763396209247,5.0,134.54,134.5,11.71765227]
[1763396209551,5.0,134.53,134.5,11.71765227]
[1763396210051,0.2,134.57,134.43,18.12096]
[1763396210214,18.12096,134.54,134.43,0.67]
[1763396210414,16.71765227,134.53,134.48,11.71765227]
[1763396210749,16.71765227,134.53,134.47,11.71765227]
[1763396211041,11.71765227,134.52,134.47,11.71765227]
[1763396211345,5.0,134.51,134.48,11.71765227]
[1763396211854,5.0,134.51,134.46,0.67]
[1763396211855,12.41765227,134.56,134.5,11.71765227]
[1763396212038,5.0,134.55,134.5,11.71765227]
[1763396212351,11.71765227,134.53,134.43,0.67]
[1763396212539,16.71765227,134.52,134.46,11.71765227]
[1763396212717,11.71765227,134.51,134.45,11.71765227]
[1763396212915,11.71765227,134.5,134.41,10.45882769]
[1763396213124,18.12096,134.45,134.41,0.67]
[1763396213328,5.0,134.44,134.42,11.71765227]
[1763396213531,4.98,134.43,134.41,0.67]
[1763396213731,4.98,134.43,134.42,11.71765227]
[1763396213923,11.71765227,134.5,134.42,11.71765227]
[1763396214136,16.69765227,134.49,134.44,11.71765227]
[1763396214327,23.10096,134.49,134.44,11.71765227]
[1763396214528,4.98,134.48,134.44,11.71765227]
[1763396214729,4.98,134.48,134.43,11.71765227]
[1763396215236,4.98,134.48,134.38,0.67]
[1763396215237,11.71765227,134.46,134.38,0.67]
[1763396215419,11.71765227,134.45,134.38,0.67]
[1763396215624,11.71765227,134.45,134.39,11.71765227]
[1763396215862,4.98,134.44,134.43,11.71765227]
[1763396216168,4.98,134.44,134.42,11.71765227]
[1763396216326,18.12096,134.49,134.43,11.71765227]
[1763396216657,18.12096,134.49,134.39,0.67]
[1763396216658,16.69765227,134.48,134.39,0.67]
[1763396216861,11.71765227,134.45,134.39,0.67]
[1763396217027,0.7,134.47,134.41,11.71765227]
[1763396217355,0.7,134.47,134.39,0.67]
[1763396217356,4.98,134.46,134.42,11.71765227]
[1763396217642,4.98,134.46,134.41,11.71765227]
[1763396217836,16.69765227,134.46,134.41,11.71765227]
[1763396218041,4.98,134.45,134.41,11.71765227]
[1763396218236,11.71765227,134.46,134.42,0.67]
[1763396218543,4.98,134.45,134.41,12.38765227]
[1763396218747,4.98,134.45,134.41,11.71765227]
[1763396218919,4.98,134.45,134.3,34.30453077]
[1763396218920,11.71765227,134.42,134.33,0.67]
[1763396219123,11.71765227,134.42,134.19,55.80992914]
[1763396219124,11.71765227,134.41,134.34,0.67]
[1763396219333,11.71765227,134.39,134.34,0.67]
[1763396219531,11.71765227,134.39,134.33,11.71765227]
[1763396219728,4.98,134.4,134.31,0.67]
[1763396219943,11.71765227,134.37,134.31,12.38765227]
[1763396220152,11.71765227,134.4,134.34,11.71765227]
[1763396220336,11.71765227,134.38,134.32,0.67]
[1763396220537,4.98,134.39,134.32,0.67]
[1763396220538,11.71765227,134.36,134.32,0.67]
[1763396220750,4.98,134.37,134.29,0.67]
[1763396220751,11.71765227,134.35,134.29,0.67]
[1763396220956,4.98,134.37,134.32,11.71765227]
[1763396221257,4.98,134.36,134.31,11.71765227]
[1763396221465,4.98,134.35,134.24,9.78882769]
[1763396221665,50.0,134.43,134.34,11.71765227]
[1763396221666,4.96,134.38,134.34,11.71765227]
[1763396221877,0.7,134.5,134.38,9.78882769]
[1763396222169,11.71765227,134.47,134.36,9.78882769]
[1763396222327,5.66,134.49,134.42,11.71765227]
[1763396222529,11.71765227,134.48,134.42,11.71765227]
[1763396222762,11.71765227,134.48,134.41,0.67]
[1763396222932,11.71765227,134.47,134.41,12.38765227]
[1763396223127,11.71765227,134.47,134.34,4.96]
[1763396223433,11.71765227,134.47,134.41,11.71765227]
[1763396223633,11.71765227,134.47,134.4,9.78882769]
[1763396223862,4.96,134.48,134.4,0.67]
[1763396223863,11.71765227,134.46,134.4,0.67]
[1763396224091,4.96,134.48,134.45,11.71765227]
[1763396224291,4.96,134.48,134.39,18.12096]
[1763396224292,4.96,134.48,134.46,12.38765227]
[1763396224581,4.96,134.48,134.46,0.67]
[1763396224874,4.96,134.48,134.45,11.71765227]
[1763396225067,4.96,134.48,134.47,11.71765227]
[1763396225287,4.96,134.48,134.44,0.67]
[1763396225481,4.96,134.48,134.45,11.71765227]
[1763396225858,4.96,134.48,134.47,11.71765227]
[1763396226086,11.71765227,134.54,134.47,21.50647996]
[1763396226260,4.96,134.54,134.49,11.71765227]
[1763396226595,4.96,134.54,134.48,0.67]
[1763396226802,0.2,134.57,134.53,11.71765227]
[1763396227091,0.2,134.57,134.56,21.50647996]
[1763396227275,11.71765227,134.62,134.56,12.41765227]
[1763396227584,4.96,134.63,134.58,11.71765227]
[1763396227807,16.67765227,134.63,134.57,12.41765227]
[1763396227955,16.67765227,134.63,134.53,0.7]
[1763396227956,11.71765227,134.62,134.53,0.7]
[1763396228160,11.71765227,134.61,134.54,21.50647996]
[1763396228391,0.69,134.62,134.55,11.71765227]
[1763396228589,0.69,134.62,134.56,11.71765227]
[1763396228790,4.96,134.61,134.56,10.48882769]
[1763396229082,11.71765227,134.64,134.58,11.71765227]
[1763396229288,4.96,134.63,134.61,11.71765227]
[1763396229467,0.89,134.69,134.57,10.48882769]
[1763396229468,4.96,134.65,134.6,11.71765227]
[1763396229666,4.96,134.65,134.6,12.41765227]
[1763396230054,4.96,134.65,134.6,11.71765227]
[1763396230255,4.96,134.65,134.61,0.7]
[1763396230491,4.96,134.65,134.6,0.7]
[1763396230693,4.96,134.65,134.61,0.7]
[1763396230852,18.44767473,134.65,134.57,9.78882769]
[1763396231053,13.48767473,134.63,134.57,0.7]
[1763396231388,4.96,134.65,134.6,13.48767473]
[1763396231613,4.96,134.65,134.62,13.48767473]
[1763396231809,4.96,134.65,134.6,9.78882769]
[1763396231988,18.44767473,134.65,134.59,14.18767473]
[1763396232330,4.96,134.65,134.58,14.18767473]
[1763396232529,4.96,134.65,134.59,13.48767473]
[1763396232831,0.2,134.69,134.64,9.78882769]
[1763396233035,0.2,134.69,134.68,13.48767473]
[1763396233318,18.42767473,134.76,134.69,9.78882769]
[1763396233490,4.94,134.76,134.7,13.48767473]
[1763396233687,18.42767473,134.76,134.69,14.18767473]
[1763396233909,4.94,134.76,134.71,13.48767473]
[1763396234101,13.48767473,134.72,134.64,10.48882769]
[1763396234283,13.48767473,134.72,134.66,23.27650242]
[1763396234519,13.48767473,134.73,134.67,14.18767473]
[1763396234727,0.69,134.75,134.68,23.27650242]
[1763396234935,4.94,134.76,134.69,13.48767473]
[1763396235085,13.48767473,134.73,134.65,0.7]
[1763396235283,0.69,134.75,134.65,0.7]
[1763396235284,13.48767473,134.71,134.65,14.18767473]
[1763396235590,18.81096,134.75,134.66,13.48767473]
[1763396235591,0.69,134.74,134.66,13.48767473]
[1763396235787,13.48767473,134.73,134.67,14.18767473]
[1763396236183,5.63,134.76,134.68,13.48767473]
[1763396236388,13.48767473,134.74,134.68,14.18767473]
[1763396236590,13.48767473,134.72,134.66,13.48767473]
[1763396236792,18.40767473,134.71,134.65,23.27650242]
[1763396237007,18.40767473,134.71,134.65,23.97650242]
[1763396237211,18.40767473,134.71,134.62,18.12096]
[1763396237212,0.69,134.7,134.62,13.48767473]
[1763396237387,13.48767473,134.66,134.6,13.48767473]
[1763396237595,18.40767473,134.66,134.6,13.48767473]
[1763396237784,4.92,134.66,134.59,13.48767473]
[1763396238016,18.40767473,134.66,134.6,9.78882769]
[1763396238320,13.48767473,134.64,134.58,13.48767473]
[1763396238490,4.60250508,134.63,134.58,13.48767473]
[1763396238682,4.92,134.66,134.6,13.48767473]
[1763396238918,13.48767473,134.65,134.59,14.14767473]
[1763396239146,4.6124005,134.64,134.59,0.66]
[1763396239293,13.48767473,134.63,134.56,0.66]
[1763396239628,18.100395,134.62,134.56,14.14767473]
[1763396239824,13.48767473,134.6,134.53,0.66]
[1763396240041,4.92,134.61,134.54,10.44882769]
[1763396240313,13.48767473,134.6,134.54,14.14767473]
[1763396240524,13.48767473,134.59,134.54,0.66]
[1763396240695,13.48767473,134.57,134.52,0.66]
[1763396241013,4.61711809,134.56,134.52,10.44882769]
[1763396241201,13.48767473,134.56,134.49,14.14767473]
[1763396241396,18.10479282,134.55,134.49,0.66]
[1763396241595,13.48767473,134.53,134.47,14.14767473]
[1763396241798,5.74924773,134.58,134.52,13.48767473]
[1763396241999,8.41332501,134.61,134.51,9.78882769]
[1763396242000,13.48767473,134.57,134.51,9.78882769]
[1763396242217,4.92,134.59,134.48,0.66]
[1763396242218,13.48767473,134.54,134.48,0.66]
[1763396242388,18.11012993,134.53,134.47,9.78882769]
[1763396242590,4.6224552,134.52,134.47,14.14767473]
[1763396242789,13.48767473,134.51,134.45,13.48767473]
[1763396243009,13.48767473,134.48,134.42,13.48767473]
[1763396243242,4.62651811,134.47,134.42,13.48767473]
[1763396243453,4.92,134.48,134.44,0.66]
[1763396243610,18.40767473,134.48,134.42,13.48767473]
[1763396243812,18.11419284,134.47,134.41,14.14767473]
[1763396244112,18.11419284,134.46,134.41,0.66]
[1763396244312,13.48767473,134.46,134.37,18.12096]
[1763396244518,4.62529529,134.45,134.4,0.66]
[1763396244853,4.62529529,134.46,134.42,23.27650242]
[1763396245025,18.11297002,134.47,134.42,9.78882769]
[1763396245340,4.62529529,134.46,134.42,9.78882769]
[1763396245840,4.62529529,134.46,134.43,0.76]
[1763396246610,18.40767473,134.48,134.43,0.1]
[1763396246814,13.48767473,134.45,134.43,0.1]
[1763396247013,18.11297002,134.44,134.43,0.1]
[1763396248138,4.62529529,134.44,134.43,0.1]
[1763396248729,5.31529529,134.44,134.43,0.1]
[1763396248931,14.17767473,134.44,134.43,0.1]
[1763396249140,0.69,134.44,134.43,0.1]
[1763396249325,0.69,134.46,134.43,0.1]
[1763396249640,4.62529529,134.47,134.43,0.1]
[1763396249940,13.48767473,134.46,134.43,0.1]
[1763396250147,4.92,134.48,134.43,0.76]
[1763396250332,13.48767473,134.46,134.43,0.1]
[1763396250538,13.48767473,134.45,134.43,0.1]
[1763396250722,23.01323948,134.44,134.43,0.1]
[1763396251239,23.70323948,134.44,134.43,0.1]
[1763396252345,10.21556475,134.44,134.43,0.1]
[1763396252522,19.07767473,134.44,134.43,0.1]
[1763396252724,23.70323948,134.44,134.43,0.1]
[1763396253235,23.70323948,134.44,134.31,18.12096]
[1763396253236,18.12096,134.41,134.31,14.14767473]
[1763396253415,13.48767473,134.36,134.31,0.66]
[1763396253740,4.88,134.35,134.31,0.66]